bitfinex/quotes_SOLUSD_20240909
["timestamp","ask_amount","ask_price","bid_price","bid_amount"]
[1725885117602,45.0,129.04,128.99,13.8786068]
[1725885121517,50.0,129.03,128.94,15.0965]
[1725885121719,50.0,129.03,128.94,28.9751068]
[1725885121720,70.0,129.03,128.94,28.9751068]
[1725885121910,52.7507,129.02,128.94,28.9751068]
[1725885122228,27.7514,129.01,128.94,28.9751068]
[1725885122425,45.0,129.0,128.94,28.9751068]
[1725885123905,45.0,129.0,128.96,13.8786068]
[1725885124111,22.5187,129.04,128.98,13.8786068]
[1725885124438,65.0,129.03,128.98,13.8786068]
[1725885126238,65.0,129.03,128.97,34.70398888]
[1725885130552,22.5187,129.04,128.97,34.70398888]
[1725885132647,45.0,129.03,128.97,34.70398888]
[1725885132848,22.7774,129.07,128.99,34.70398888]
[1725885133039,28.62654901,129.08,129.01,50.28348888]
[1725885133241,28.62654901,129.08,129.03,34.70398888]
[1725885133630,28.62654901,129.08,129.05,34.70398888]
[1725885133829,22.0408,129.11,129.05,34.70398888]
[1725885134227,22.0408,129.11,129.03,34.70398888]
[1725885134658,20.0,129.1,129.03,34.70398888]
[1725885135131,20.0,129.1,129.01,50.28348888]
[1725885135341,57.7465,129.09,129.01,15.5795]
[1725885135655,20.0,129.08,129.01,15.5795]
[1725885136029,20.0,129.08,128.99,41.05168888]
[1725885136030,27.7473,129.08,128.99,41.05168888]
[1725885136252,57.749,129.05,128.95,34.70398888]
[1725885136560,65.0,129.04,128.97,34.70398888]
[1725885137336,65.0,129.04,128.95,34.70398888]
[1725885137547,65.0,129.04,128.93,50.61438888]
[1725885137853,72.7496,129.04,128.93,50.61438888]
[1725885138165,57.7502,129.03,128.93,50.61438888]
[1725885138325,65.0,129.02,128.93,50.61438888]
[1725885139937,65.0,129.02,128.92,34.70398888]
[1725885139938,21.9458,129.01,128.92,34.70398888]
[1725885140253,65.0,129.0,128.92,34.70398888]
[1725885140654,45.0,129.0,128.92,34.70398888]
[1725885141053,21.9458,129.01,128.92,34.70398888]
[1725885141257,65.0,129.0,128.92,34.70398888]
[1725885141658,65.0,129.0,128.91,0.17390718]
[1725885141963,50.0,128.99,128.91,0.17390718]
[1725885142142,65.0,128.98,128.91,0.17390718]
[1725885144368,72.7533,128.98,128.91,0.17390718]
[1725885144661,20.0,128.98,128.91,0.17390718]
[1725885144865,45.0,128.97,128.91,0.17390718]
[1725885146952,20.0,128.98,128.91,34.87789606]
[1725885147158,20.0,128.99,128.91,34.87789606]
[1725885148367,45.0,128.98,128.91,34.87789606]
[1725885148574,20.0,128.97,128.91,34.87789606]
[1725885148874,45.0,128.96,128.91,34.87789606]
[1725885154062,45.0,128.96,128.91,0.17390718]
[1725885154368,45.0,128.96,128.91,14.07004301]
[1725885155561,42.8565,128.95,128.91,0.17390718]
[1725885155770,45.0,128.94,128.91,0.17390718]
[1725885161783,42.8565,128.95,128.91,0.17390718]
[1725885161784,26.6044,128.95,128.91,0.17390718]
[1725885161973,95.55856627,128.98,128.91,0.17390718]
[1725885162166,95.55856627,128.98,128.91,34.9300958]
[1725885162369,24.35266627,128.98,128.93,34.75618862]
[1725885163094,22.6176,129.01,128.93,34.75618862]
[1725885164181,20.0,129.0,128.93,34.75618862]
[1725885165466,6.1624,129.01,128.95,34.75618862]
[1725885165684,73.86681458,129.04,128.95,34.75618862]
[1725885165882,22.5157,129.04,128.97,34.75618862]
[1725885166077,22.5157,129.04,128.99,34.75618862]
[1725885166385,23.19924207,129.06,128.99,34.75618862]
[1725885167578,20.0,129.05,128.99,34.75618862]
[1725885167763,23.19924207,129.06,128.99,34.75618862]
[1725885167965,23.19924207,129.06,129.01,34.75618862]
[1725885168378,79.736,129.1,129.01,34.75618862]
[1725885168578,71.9901,129.1,129.01,34.75618862]
[1725885168892,21.9901,129.1,129.01,34.75618862]
[1725885170071,21.9901,129.1,129.03,34.75618862]
[1725885170803,83.55346847,129.14,129.03,56.06978862]
[1725885171177,50.0,129.12,129.03,56.06978862]
[1725885171378,20.0,129.11,129.03,56.06978862]
[1725885172706,45.0,129.1,129.03,56.06978862]
[1725885174800,20.0,129.11,129.05,34.75618862]
[1725885175005,20.0,129.13,129.05,34.75618862]
[1725885176110,71.3594,129.14,129.05,34.75618862]
[1725885176495,45.0,129.13,129.05,34.75618862]
[1725885177188,20.0,129.12,129.05,34.75618862]
[1725885177594,20.0,129.13,129.07,34.75618862]
[1725885178601,20.0,129.15,129.07,34.75618862]
[1725885179389,45.0,129.14,129.07,34.75618862]
[1725885179905,45.0,129.14,129.09,34.75618862]
[1725885180286,45.0,129.15,129.09,34.75618862]
[1725885180486,22.5533,129.17,129.07,34.75618862]
[1725885180487,45.0,129.16,129.07,34.75618862]
[1725885182519,95.0,129.16,129.07,34.75618862]
[1725885183618,6.511,129.17,129.09,6.1847]
[1725885183919,20.0,129.16,129.09,6.1847]
[1725885184596,20.0,129.17,129.09,6.1847]
[1725885185513,45.0,129.16,129.09,6.1847]
[1725885186224,20.0,129.17,129.09,6.1847]
[1725885187727,45.0,129.16,129.09,6.1847]
[1725885189903,53.25845119,129.2,129.1,34.75618862]
[1725885190119,51.90878809,129.2,129.1,34.75618862]
[1725885190514,44.16878809,129.2,129.12,34.75618862]
[1725885190701,21.7567,129.2,129.12,34.75618862]
[1725885191202,7.7395,129.21,129.13,15.0521]
[1725885191521,57.7389,129.22,129.13,15.0521]
[1725885192324,20.0,129.21,129.13,15.0521]
[1725885193430,45.0,129.2,129.13,15.0521]
[1725885196042,7.7407,129.19,129.13,15.0521]
[1725885196208,45.0,129.18,129.13,15.0521]
[1725885196411,45.0,129.18,129.1,16.0993]
[1725885197923,20.0,129.19,129.11,34.75618862]
[1725885198231,20.0,129.2,129.11,34.75618862]
[1725885199040,20.0,129.2,129.09,6.1847]
[1725885199041,20.0,129.2,129.13,34.75618862]
[1725885199212,20.97993133,129.23,129.15,40.91668862]
[1725885199838,57.7376,129.24,129.15,40.91668862]
[1725885200039,57.7376,129.24,129.15,6.1605]
[1725885200735,20.0,129.23,129.15,6.1605]
[1725885201325,27.7381,129.23,129.15,6.1605]
[1725885201545,45.0,129.22,129.15,6.1605]
[1725885202843,20.0,129.23,129.15,6.1605]
[1725885203043,20.0,129.24,129.15,6.1605]
[1725885203634,27.7376,129.24,129.15,6.1605]
[1725885204645,52.7382,129.23,129.15,6.1605]
[1725885205640,45.0,129.23,129.16,34.75618862]
[1725885209950,20.0,129.24,129.16,34.75618862]
[1725885210125,20.0,129.24,129.17,15.676]
[1725885211131,20.0,129.25,129.17,15.676]
[1725885211339,20.0,129.25,129.18,34.75618862]
[1725885211544,20.0,129.26,129.18,34.75618862]
[1725885211858,45.0,129.25,129.18,34.75618862]
[1725885212329,20.0,129.26,129.19,6.3639]
[1725885213525,20.0,129.27,129.19,6.3639]
[1725885214551,20.0,129.29,129.2,16.1029]
[1725885215343,7.7351,129.28,129.2,16.1029]
[1725885215854,45.0,129.27,129.2,16.1029]
[1725885216241,7.7351,129.28,129.2,29.93798457]
[1725885216442,45.0,129.27,129.2,29.93798457]
[1725885216656,7.7351,129.28,129.2,29.93798457]
[1725885217051,7.7347,129.29,129.2,29.93798457]
[1725885217250,65.0,129.28,129.2,29.93798457]
[1725885217573,65.0,129.28,129.2,16.1029]
[1725885218166,65.0,129.28,129.21,13.83508457]
[1725885218752,72.7352,129.28,129.2,16.1029]
[1725885219962,115.0,129.28,129.2,16.1029]
[1725885220168,50.0,129.26,129.2,16.1029]
[1725885220357,7.7377,129.24,129.17,16.1264]
[1725885220671,45.0,129.23,129.17,16.1264]
[1725885220963,7.7379,129.24,129.17,16.1264]
[1725885221151,45.0,129.23,129.17,16.1264]
[1725885221350,52.7371,129.25,129.17,16.1264]
[1725885221547,20.0,129.24,129.17,16.1264]
[1725885221757,45.0,129.23,129.17,16.1264]
[1725885228365,45.0,129.23,129.17,29.96148457]
[1725885230766,45.0,129.23,129.17,16.1264]
[1725885230980,52.7386,129.23,129.17,16.1264]
[1725885231773,45.0,129.23,129.17,16.1264]
[1725885232349,45.0,129.23,129.17,29.96148457]
[1725885236667,45.0,129.23,129.17,16.1264]
[1725885236867,45.0,129.23,129.17,29.96148457]
[1725885242056,20.0,129.24,129.17,16.1264]
[1725885242257,27.7371,129.25,129.17,16.1264]
[1725885242583,27.737,129.25,129.17,16.1264]
[1725885242878,27.737,129.25,129.18,13.83508457]
[1725885243862,45.0,129.24,129.18,13.83508457]
[1725885244854,45.0,129.24,129.17,16.1264]
[1725885246378,45.0,129.24,129.18,13.83508457]
[1725885249770,20.0,129.25,129.2,13.83508457]
[1725885250075,20.0,129.25,129.17,16.1264]
[1725885250076,27.7362,129.27,129.18,13.83508457]
[1725885250259,7.7363,129.26,129.18,13.83508457]
[1725885250886,7.7369,129.25,129.17,16.1264]
[1725885251057,72.7379,129.24,129.17,16.1264]
[1725885251265,7.7381,129.23,129.17,16.1264]
[1725885251565,45.0,129.22,129.17,16.1264]
[1725885251876,45.0,129.23,129.17,29.96148457]
[1725885252682,20.0,129.24,129.17,29.96148457]
[1725885252976,20.0,129.25,129.17,29.96148457]
[1725885253281,45.0,129.24,129.17,29.96148457]
[1725885257287,45.0,129.24,129.17,16.1264]
[1725885258779,45.0,129.24,129.18,13.83508457]
[1725885260782,52.7377,129.24,129.17,16.1264]
[1725885260988,45.0,129.24,129.17,16.1264]
[1725885261480,52.7376,129.24,129.17,16.1264]
[1725885263075,45.0,129.24,129.17,29.96148457]
[1725885263679,45.3964957,129.24,129.17,29.96148457]
[1725885268499,45.3964957,129.24,129.17,16.1264]
[1725885268801,53.1341957,129.24,129.17,16.1264]
[1725885268988,45.3964957,129.24,129.17,16.1264]
[1725885269299,7.7381,129.23,129.17,16.1264]
[1725885269509,45.0,129.22,129.17,16.1264]
[1725885269995,8.1341957,129.24,129.17,16.1264]
[1725885269996,52.7381,129.23,129.17,16.1264]
[1725885270209,45.0,129.23,129.17,16.1264]
[1725885270372,27.7388,129.22,129.17,16.1264]
[1725885270570,45.0,129.21,129.17,16.1264]
[1725885277182,0.3964957,129.24,129.19,13.83508457]
[1725885278506,0.3964957,129.24,129.18,6.0932]
[1725885278707,0.3964957,129.24,129.2,13.83508457]
[1725885280484,0.3964957,129.24,129.21,15.6897]
[1725885280995,0.3964957,129.24,129.18,35.61798457]
[1725885281803,0.3964957,129.24,129.18,21.7829]
[1725885283111,0.3964957,129.24,129.18,35.61798457]
[1725885286705,0.3964957,129.24,129.18,15.6897]
[1725885286914,29.9502957,129.24,129.14,35.14058457]
[1725885287217,45.0,129.23,129.14,35.14058457]
[1725885289720,45.0,129.23,129.17,0.17390718]
[1725885290515,95.0,129.23,129.17,0.17390718]
[1725885291313,7.7388,129.22,129.17,0.17390718]
[1725885291514,45.0,129.21,129.17,0.17390718]
[1725885291734,102.7383,129.23,129.17,0.17390718]
[1725885291935,7.7387,129.22,129.17,0.17390718]
[1725885292143,45.0,129.21,129.17,0.17390718]
[1725885293031,57.7382,129.23,129.17,0.17390718]
[1725885294136,58.1346957,129.23,129.17,0.17390718]
[1725885294333,45.0,129.22,129.17,0.17390718]
[1725885294717,8.1346957,129.23,129.17,0.17390718]
[1725885296038,45.0,129.22,129.17,0.17390718]
[1725885299343,45.0,129.22,129.17,14.00899175]
[1725885299541,45.3964957,129.23,129.17,14.00899175]
[1725885300528,53.1348957,129.23,129.17,0.17390718]
[1725885302729,7.7388,129.22,129.17,0.17390718]
[1725885302925,45.0,129.21,129.17,0.17390718]
[1725885303649,52.7397,129.21,129.17,0.17390718]
[1725885303856,7.74,129.2,129.17,0.17390718]
[1725885304026,45.0,129.19,129.17,0.17390718]
[1725885304227,52.7406,129.19,129.17,0.17390718]
[1725885304757,52.7406,129.19,129.14,15.0816]
[1725885305341,52.7406,129.19,129.12,13.83508457]
[1725885307343,45.0,129.19,129.12,13.83508457]
[1725885307551,52.7399,129.2,129.12,13.83508457]
[1725885308236,50.3964957,129.23,129.14,13.83508457]
[1725885308436,20.0,129.22,129.14,13.83508457]
[1725885308736,50.0,129.21,129.14,13.83508457]
[1725885308936,20.0,129.2,129.14,13.83508457]
[1725885309648,27.7399,129.2,129.14,13.83508457]
[1725885309848,45.0,129.19,129.14,13.83508457]
[1725885310254,45.0,129.19,129.11,6.4647]
[1725885310452,45.0,129.19,129.13,13.83508457]
[1725885315858,52.7405,129.19,129.13,13.83508457]
[1725885316042,74.6366,129.19,129.13,13.83508457]
[1725885318347,45.0,129.19,129.15,13.83508457]
[1725885319059,20.0,129.2,129.15,13.83508457]
[1725885320140,20.0,129.2,129.12,0.17390718]
[1725885320340,20.0,129.2,129.15,13.83508457]
[1725885320545,27.7402,129.2,129.14,13.83508457]
[1725885320854,52.7409,129.19,129.12,0.17390718]
[1725885321061,52.7409,129.19,129.13,13.83508457]
[1725885322963,45.0,129.19,129.15,13.83508457]
[1725885323178,20.0,129.2,129.12,0.17390718]
[1725885323179,22.0244,129.22,129.17,13.83508457]
[1725885324847,45.0,129.21,129.17,13.83508457]
[1725885328157,45.0,129.21,129.15,29.99748457]
[1725885328555,0.3964957,129.23,129.17,6.4918]
[1725885329059,0.3964957,129.23,129.21,13.83508457]
[1725885329257,0.3964957,129.23,129.18,20.0]
[1725885329574,0.3964957,129.23,129.22,13.83508457]
[1725885331301,0.3964957,129.23,129.2,29.62888457]
[1725885331572,0.3964957,129.23,129.17,13.83508457]
[1725885331884,0.3964957,129.23,129.19,13.83508457]
[1725885332081,0.3964957,129.23,129.18,34.59189011]
[1725885332551,0.3964957,129.23,129.15,15.6505]
[1725885332746,0.3964957,129.23,129.19,34.59189011]
[1725885333569,0.3964957,129.23,129.19,50.24239011]
[1725885335973,0.3964957,129.23,129.21,34.59189011]
[1725885339359,0.3964957,129.23,129.19,56.27799011]
[1725885340479,0.3964957,129.23,129.2,20.0]
[1725885340675,0.3964957,129.23,129.19,15.6505]
[1725885340857,0.3964957,129.23,129.16,16.1111]
[1725885341057,0.3964957,129.23,129.17,20.0]
[1725885341262,45.3964957,129.23,129.17,20.0]
[1725885341670,45.3964957,129.23,129.16,16.1111]
[1725885342177,0.3964957,129.23,129.17,34.59189011]
[1725885346772,0.3964957,129.23,129.16,16.1111]
[1725885349189,0.3964957,129.23,129.15,34.59189011]
[1725885349494,0.3964957,129.23,129.13,23.53318691]
[1725885349495,45.3964957,129.23,129.13,15.0341]
[1725885350089,45.3964957,129.23,129.14,34.59189011]
[1725885352282,0.3964957,129.23,129.16,34.59189011]
[1725885352499,45.3964957,129.23,129.16,34.59189011]
[1725885353181,0.3964957,129.23,129.16,34.59189011]
[1725885353995,0.3964957,129.23,129.13,17.51834981]
[1725885354195,45.3964957,129.23,129.15,34.59189011]
[1725885358900,45.3964957,129.23,129.17,34.59189011]
[1725885358901,0.3964957,129.23,129.17,34.59189011]
[1725885359977,0.3964957,129.23,129.16,34.59189011]
[1725885360181,0.3964957,129.23,129.18,13.84005206]
[1725885361982,0.3964957,129.23,129.21,13.84005206]
[1725885364200,0.3964957,129.23,129.22,0.17390718]
[1725885365698,0.3964957,129.23,129.22,14.01395924]
[1725885365887,0.3964957,129.23,129.22,34.01395924]
[1725885366317,0.3964957,129.23,129.22,20.17390718]
[1725885366524,0.3964957,129.23,129.22,34.01395924]
[1725885366811,0.3964957,129.23,129.22,14.01395924]
[1725885367114,0.3964957,129.23,129.22,34.01395924]
[1725885368188,0.3964957,129.23,129.22,54.74332401]
[1725885369696,0.3964957,129.23,129.22,20.17390718]
[1725885369891,0.3964957,129.23,129.22,0.17390718]
[1725885371991,0.3964957,129.23,129.22,34.74332401]
[1725885372192,0.3964957,129.23,129.22,54.74332401]
[1725885372708,56.87314643,129.32,129.22,54.74332401]
[1725885372709,15.8482,129.31,129.22,89.31274084]
[1725885372923,15.8482,129.31,129.28,34.56941683]
[1725885373293,6.3868,129.33,129.28,34.56941683]
[1725885373496,15.8482,129.34,129.3,34.56941683]
[1725885373699,7.2336213,129.36,129.32,34.56941683]
[1725885374397,0.8411213,129.36,129.34,34.56941683]
[1725885375114,0.8411213,129.36,129.35,20.0]
[1725885376416,0.8411213,129.36,129.32,34.56941683]
[1725885376733,0.8411213,129.36,129.29,16.4381]
[1725885376734,0.8411213,129.36,129.31,20.0]
[1725885377018,0.8411213,129.36,129.25,2.48064035]
[1725885377019,15.1497,129.35,129.28,34.56941683]
[1725885377196,6.158,129.34,129.28,34.56941683]
[1725885377923,45.0,129.33,129.26,34.56941683]
[1725885379720,45.0,129.33,129.32,0.17390718]
[1725885382022,6.158,129.34,129.32,0.17390718]
[1725885383612,6.158,129.34,129.32,34.74332401]
[1725885383813,0.8411213,129.36,129.32,34.74332401]
[1725885389336,0.8411213,129.36,129.32,0.17390718]
[1725885390713,0.8411213,129.36,129.33,34.56941683]
[1725885391934,0.8411213,129.36,129.32,0.17390718]
[1725885392724,45.8411213,129.36,129.32,0.17390718]
[1725885393532,53.5716213,129.36,129.32,0.17390718]
[1725885394842,45.8411213,129.36,129.32,0.17390718]
[1725885397946,0.8411213,129.36,129.32,0.17390718]
[1725885407147,22.8784,129.34,129.32,0.17390718]
[1725885407342,45.0,129.33,129.32,0.17390718]
[1725885407548,102.7321,129.33,129.32,0.17390718]
[1725885409250,95.0,129.33,129.32,0.17390718]
[1725885410250,102.7321,129.33,129.32,0.17390718]
[1725885410939,57.7321,129.33,129.32,0.17390718]
[1725885411261,102.7321,129.33,129.32,0.17390718]
[1725885412347,45.0,129.33,129.32,0.17390718]
[1725885414266,22.8784,129.34,129.32,0.17390718]
[1725885415137,0.8411213,129.36,129.32,0.17390718]
[1725885417458,45.8411213,129.36,129.32,0.17390718]
[1725885419270,53.5718213,129.36,129.32,0.17390718]
[1725885420861,7.7317,129.34,129.32,0.17390718]
[1725885421065,45.0,129.33,129.32,0.17390718]
[1725885426048,8.5718213,129.36,129.32,0.17390718]
[1725885426370,65.0,129.35,129.32,0.17390718]
[1725885430777,72.7309,129.35,129.32,0.17390718]
[1725885436765,65.0,129.35,129.32,0.17390718]
[1725885437150,45.0,129.35,129.32,0.17390718]
[1725885437559,52.731,129.35,129.32,0.17390718]
[1725885437766,7.7316,129.34,129.32,0.17390718]
[1725885438067,45.0,129.33,129.32,0.17390718]
[1725885439968,7.731,129.35,129.32,0.17390718]
[1725885440169,45.0,129.34,129.32,0.17390718]
[1725885444770,52.7317,129.34,129.32,0.17390718]
[1725885445088,45.0,129.34,129.32,0.17390718]
[1725885445770,8.5717213,129.36,129.32,0.17390718]
[1725885445975,65.0,129.35,129.32,0.17390718]
[1725885450089,0.8411213,129.36,129.32,0.17390718]
[1725885450297,65.8411213,129.36,129.32,0.17390718]
[1725885450791,0.8411213,129.36,129.32,0.17390718]
[1725885453802,10.57384025,129.36,129.32,0.17390718]
[1725885454095,52.731,129.35,129.32,0.17390718]
[1725885454591,45.0,129.35,129.32,0.17390718]
[1725885455000,57.7321,129.33,129.32,0.17390718]
[1725885455173,122.7321,129.33,129.32,0.17390718]
[1725885460190,77.7321,129.33,129.32,0.17390718]
[1725885460391,122.7321,129.33,129.32,0.17390718]
[1725885462601,27.7321,129.33,129.32,0.17390718]
[1725885463109,77.7321,129.33,129.32,0.17390718]
[1725885463912,122.7321,129.33,129.32,0.17390718]
[1725885464991,72.7321,129.33,129.32,0.17390718]
[1725885466208,122.7321,129.33,129.32,0.17390718]
[1725885469415,50.0,129.3,129.23,15.1911]
[1725885469709,65.0,129.29,129.23,15.1911]
[1725885470092,7.7362,129.27,129.23,15.1911]
[1725885470290,45.0,129.26,129.23,15.1911]
[1725885471401,45.0,129.27,129.23,15.1911]
[1725885472997,45.0,129.28,129.23,15.1911]
[1725885473196,20.0,129.29,129.23,15.1911]
[1725885474112,7.7335,129.31,129.23,49.76051683]
[1725885474311,20.0,129.3,129.23,49.76051683]
[1725885474511,20.0,129.31,129.23,49.76051683]
[1725885475511,27.7335,129.31,129.23,49.76051683]
[1725885475717,20.0,129.31,129.23,15.1911]
[1725885475919,7.7339,129.3,129.23,15.1911]
[1725885476533,45.0,129.29,129.23,15.1911]
[1725885477516,45.0,129.3,129.23,49.76051683]
[1725885478793,7.7323,129.33,129.25,34.56941683]
[1725885479000,65.0,129.32,129.25,34.56941683]
[1725885479244,20.0,129.32,129.25,34.56941683]
[1725885479911,7.7323,129.33,129.25,34.56941683]
[1725885480312,7.7317,129.34,129.25,34.56941683]
[1725885480625,45.0,129.32,129.25,34.56941683]
[1725885484133,45.0,129.32,129.26,13.82126483]
[1725885488414,45.0,129.32,129.24,6.5066]
[1725885488599,45.0,129.32,129.25,33.82126483]
[1725885488802,52.7327,129.32,129.25,33.82126483]
[1725885489534,45.0,129.32,129.25,33.82126483]
[1725885489906,45.0,129.32,129.27,13.82126483]
[1725885490828,45.0,129.33,129.27,13.82126483]
[1725885491523,50.8411213,129.36,129.29,13.82126483]
[1725885491726,8.5718213,129.36,129.29,13.82126483]
[1725885492518,8.5718213,129.36,129.31,13.82126483]
[1725885493597,45.0,129.35,129.31,13.82126483]
[1725885494236,0.8411213,129.36,129.31,13.82126483]
[1725885494405,20.8411213,129.36,129.31,13.82126483]
[1725885494603,0.8411213,129.36,129.31,13.82126483]
[1725885496125,45.8411213,129.36,129.31,13.82126483]
[1725885496829,0.8411213,129.36,129.31,13.82126483]
[1725885497007,45.8411213,129.36,129.31,13.82126483]
[1725885497201,45.8411213,129.36,129.29,6.3978]
[1725885497532,7.7316,129.34,129.29,6.3978]
[1725885497708,95.0,129.33,129.26,21.42144522]
[1725885498031,45.0,129.32,129.26,21.42144522]
[1725885498521,0.8411213,129.36,129.3,13.82126483]
[1725885498721,0.8411213,129.36,129.26,21.42144522]
[1725885498722,50.0,129.35,129.26,21.42144522]
[1725885499026,72.732,129.34,129.28,13.82126483]
[1725885499914,65.0,129.34,129.28,13.82126483]
[1725885500226,8.5720213,129.36,129.26,21.42144522]
[1725885500227,0.8411213,129.36,129.3,13.82126483]
[1725885500528,20.8411213,129.36,129.3,13.82126483]
[1725885500710,0.8411213,129.36,129.3,13.82126483]
[1725885500914,20.8411213,129.36,129.3,13.82126483]
[1725885501112,0.8411213,129.36,129.3,13.82126483]
[1725885501535,45.8411213,129.36,129.3,13.82126483]
[1725885504509,45.8411213,129.36,129.29,21.8982]
[1725885504930,7.7315,129.34,129.29,21.8982]
[1725885505121,45.0,129.33,129.29,21.8982]
[1725885506418,45.0,129.34,129.29,21.8982]
[1725885507941,45.0,129.34,129.3,13.82126483]
[1725885509232,8.5717213,129.36,129.3,13.82126483]
[1725885509432,65.0,129.35,129.3,13.82126483]
[1725885512133,65.0,129.35,129.29,21.8982]
[1725885512358,72.7311,129.35,129.29,21.8982]
[1725885513331,7.7317,129.34,129.29,21.8982]
[1725885513545,7.7317,129.34,129.26,21.42144522]
[1725885513546,95.0,129.33,129.26,43.91374522]
[1725885513744,50.0,129.33,129.26,43.91374522]
[1725885513913,45.0,129.32,129.26,37.75574522]
[1725885514111,20.0,129.31,129.26,37.75574522]
[1725885514416,45.0,129.3,129.26,37.75574522]
[1725885517425,52.7341,129.3,129.26,21.42144522]
[1725885517930,50.2341,129.3,129.26,21.42144522]
[1725885518325,42.5,129.3,129.26,21.42144522]
[1725885521226,50.234,129.3,129.26,21.42144522]
[1725885521556,20.0,129.29,129.26,21.42144522]
[1725885521764,45.0,129.28,129.26,21.42144522]
[1725885536353,50.0,129.27,129.26,21.42144522]
[1725885536561,70.0,129.27,129.26,21.42144522]
[1725885536739,115.0,129.27,129.26,21.42144522]
[1725885537263,122.7357,129.27,129.26,21.42144522]
[1725885541357,122.7357,129.27,129.15,29.04987289]
[1725885541358,57.7377,129.24,129.15,29.04987289]
[1725885541546,57.7377,129.24,129.15,15.2143]
[1725885541547,7.7398,129.21,129.15,15.2143]
[1725885541748,50.0,129.22,129.15,15.2143]
[1725885542040,45.0,129.21,129.15,15.2143]
[1725885542383,65.0,129.21,129.15,15.2143]
[1725885542563,65.0,129.21,129.15,29.04987289]
[1725885543666,65.0,129.21,129.11,16.3164]
[1725885543667,15.4033,129.19,129.11,16.3164]
[1725885543967,15.4033,129.19,128.97,50.0]
[1725885543968,56.6267,129.17,129.03,21.5462]
[1725885544176,57.7429,129.15,129.03,21.5462]
[1725885544480,45.0,129.14,129.07,13.83557289]
[1725885545143,20.0,129.13,129.07,13.83557289]
[1725885545341,45.0,129.12,129.07,13.83557289]
[1725885545542,45.0,129.12,129.03,21.5462]
[1725885545847,45.0,129.12,129.06,13.83557289]
[1725885546043,45.0,129.12,129.04,13.83557289]
[1725885546252,45.0,129.12,129.03,56.21731454]
[1725885546458,20.0,129.11,129.03,21.5462]
[1725885546659,45.0,129.1,129.03,21.5462]
[1725885547566,45.0,129.1,129.03,56.21731454]
[1725885547869,20.0,129.11,129.05,34.67111454]
[1725885548073,50.0,129.13,129.05,34.67111454]
[1725885548074,20.0,129.12,129.05,34.67111454]
[1725885548273,45.0,129.11,129.05,34.67111454]
[1725885551982,20.0,129.12,129.05,34.67111454]
[1725885552275,45.0,129.11,129.05,34.67111454]
[1725885552774,45.0,129.11,129.04,34.67111454]
[1725885556586,57.7435,129.14,129.06,34.67111454]
[1725885556877,45.0,129.13,129.06,34.67111454]
[1725885557069,45.0,129.14,129.06,34.67111454]
[1725885558075,20.0,129.13,129.06,34.67111454]
[1725885558263,45.0,129.12,129.06,34.67111454]
[1725885563587,15.9476,129.15,129.08,34.67111454]
[1725885563885,65.0,129.14,129.08,34.67111454]
[1725885565188,65.0,129.14,129.03,21.5462]
[1725885565358,7.7441,129.13,129.04,54.67111454]
[1725885565695,45.0,129.12,129.04,34.67111454]
[1725885567805,45.0,129.12,129.06,34.67111454]
[1725885567968,45.0,129.13,129.06,34.67111454]
[1725885572208,45.0,129.13,129.07,13.86372079]
[1725885573997,45.0,129.13,129.09,13.86372079]
[1725885574309,20.0,129.14,129.09,13.86372079]
[1725885574804,20.0,129.16,129.09,13.86372079]
[1725885575305,14.3684,129.17,129.09,13.86372079]
[1725885575697,6.6267,129.17,129.09,13.86372079]
[1725885575902,6.6267,129.17,129.11,13.86372079]
[1725885577604,6.6267,129.17,129.09,13.86372079]
[1725885577908,45.0,129.16,129.09,13.86372079]
[1725885579000,45.0,129.16,129.11,13.86372079]
[1725885579934,6.6267,129.17,129.11,13.86372079]
[1725885580096,22.83067044,129.18,129.13,13.86372079]
[1725885580305,22.83067044,129.18,129.15,13.86372079]